Cogmind - Beta 11 X7 @@@ ROGUE MODE // 2021.11.17 @ 22:35:41 Player: thingamajigger Result: Self-destructed Performance ------------- Evolutions (5) 2500 Regions Visited (14) 2800 Robots Destroyed (154) 770 Value Destroyed (8748) 8748 Prototype IDs (6) 120 Alien Tech Used (0) 0 Bonus (6674) 6674 TOTAL SCORE: 21612 Bonus ------- High Alert Combat Kills 999 Follower Combat Kills 1756 Entered Garrisons 1200 Used RIF Installer 3000 Friendly Fire -281 Cogmind --------- Core Integrity 732/1000 Matter 295/300 Energy 170/170 System Corruption 14% Temperature Cool (2) Movement Treading (260) Ox1 Location -5/Garrison Parts ------- > --- POWER (1) -------- Micro Fission Core > --- PROPULSION (6) --- Improved Treads Improved Treads Improved Medium Treads > --- UTILITY (7) ------ Huge Storage Unit Relay Coupler [NC] (32) Relay Coupler [Swarmer] (12) Relay Coupler [Swarmer] (41) Relay Coupler [Grunt] (6) Relay Coupler [Sentry] (12) > --- WEAPON (3) ------- High-powered Shock Rifle Plasma Sword > --- INVENTORY (25) --- Advanced ECM Suite Powered Armor Powered Armor Powered Armor Relay Coupler [NC] (37) Relay Coupler [NC] (36) Relay Coupler [ARC] (16) Relay Coupler [Swarmer] (51) Relay Coupler [Swarmer] (48) Relay Coupler [Sentry] (30) Relay Coupler [Sentry] (27) Relay Coupler [Sentry] (31) Relay Coupler [Sentry] (27) Relay Coupler [Sentry] (27) Relay Coupler [Demolisher] (28) Relay Coupler [Hunter] (24) Relay Coupler [Hunter] (24) Relay Coupler [Hunter] (23) Relay Coupler [Hunter] (26) Relay Coupler [Behemoth] (16) Relay Coupler [Behemoth] (15) Tesla Rifle Peak State ------------ > --- POWER ------------ (None) > --- PROPULSION ------- Light Treads Light Treads Improved Treads Improved Medium Treads Improved Medium Treads Carbon-fiber Leg > --- UTILITY ---------- Huge Storage Unit Enhanced Optical Array Relay Coupler [NC] Relay Coupler [ARC] Relay Coupler [Swarmer] Relay Coupler [Grunt] Relay Coupler [Sentry] > --- WEAPON ----------- Improved Proton Missile Launcher Mace Plasma Sword > --- INVENTORY -------- Advanced ECM Suite Powered Armor Powered Armor Powered Armor Relay Coupler [NC] Relay Coupler [NC] Relay Coupler [ARC] Relay Coupler [Swarmer] Relay Coupler [Swarmer] Relay Coupler [Sentry] Relay Coupler [Sentry] Relay Coupler [Sentry] Relay Coupler [Sentry] Relay Coupler [Sentry] Relay Coupler [Demolisher] Relay Coupler [Hunter] Relay Coupler [Hunter] Relay Coupler [Hunter] Relay Coupler [Heavy] Relay Coupler [Behemoth] Relay Coupler [Behemoth] [Rating: 61] Favorites ----------- Power Cooled Ion Engine Engine Cooled Ion Engine Power Core Light Nuclear Core Propulsion Light Treads Treads Light Treads Leg Aluminum Leg Wheel Armored Huge Wheel Utility Huge Storage Unit Device System Backup Module Storage Huge Storage Unit Processor Enhanced Optical Array Hackware Relay Coupler [Sentry] Protection Improved Light Armor Plating Weapon Remote Datajack Energy Gun Beam Rifle Energy Cannon Advanced Beam Cannon Ballistic Gun Autogun Launcher Missile Launcher Special Weapon Remote Datajack Impact Weapon Mace Slashing Weapon Plasma Sword Piercing Weapon Heavy Pick Special Melee Weapon Improved Datajack Build | -11 -10 -9 -8 -8 -8 -8 -7 -7 -7 -7 -6 -6 -5 -5 ------- Run | Scr Mat Mat Mat Gar Mat Gar Fac Gar Fac Gar Fac Gar Fac Gar Slots Evolved 10 | . . 2 2 . . . 2 . . . 2 . 2 . Power . | . . . . . . . . . . . . . . . Propulsion 4 | . . 2 1 . . . . . . . . . 1 . Utility 5 | . . . 1 . . . 1 . . . 2 . 1 . Weapon 1 | . . . . . . . 1 . . . . . . . Parts Attached 198 | 6 2 26 7 19 10 21 7 19 1 15 20 26 16 3 Power 14 | 1 1 3 . . 1 1 1 1 . 1 1 2 1 . Engine 8 | 1 1 3 . . 1 . 1 . . . . 1 . . Core 6 | . . . . . . 1 . 1 . 1 1 1 1 . Reactor . | . . . . . . . . . . . . . . . Propulsion 64 | 2 . 6 3 6 2 9 . 7 . 6 7 12 4 . Treads 38 | 2 . 6 1 5 2 9 . . . 2 1 6 4 . Leg 21 | . . . . . . . . 7 . 2 6 6 . . Wheel 5 | . . . 2 1 . . . . . 2 . . . . Hover . | . . . . . . . . . . . . . . . Flight . | . . . . . . . . . . . . . . . Utility 55 | 1 1 3 1 3 6 3 4 4 . 4 8 8 7 2 Device 4 | . . . . . . . 1 1 . . . 1 1 . Storage 7 | 1 . 2 . 1 . . . 1 . . 1 . 1 . Processor 2 | . 1 . . . . . . . . . . . 1 . Hackware 31 | . . 1 . . 6 1 1 1 . 4 6 6 3 2 Protection 11 | . . . 1 2 . 2 2 1 . . 1 1 1 . Artifact . | . . . . . . . . . . . . . . . Weapon 65 | 2 . 14 3 10 1 8 2 7 1 4 4 4 4 1 Energy Gun 13 | . . 5 . 2 . 1 1 3 . . . . . 1 Energy Cannon 7 | . . 2 1 4 . . . . . . . . . . Ballistic Gun 16 | 2 . 4 1 1 . 4 . . . 3 1 . . . Ballistic Cannon . | . . . . . . . . . . . . . . . Launcher 8 | . . . . 3 . . 1 2 . . . 1 1 . Special Weapon 8 | . . . . . . 1 . 1 1 1 1 2 1 . Impact Weapon 5 | . . 3 1 . . . . . . . . 1 . . Slashing Weapon 4 | . . . . . . 2 . 1 . . . . 1 . Piercing Weapon 2 | . . . . . . . . . . . 2 . . . Special Melee Weapon 2 | . . . . . 1 . . . . . . . 1 . Unidentified Prototypes 6 | . . 4 . . . . 1 . . . . . 1 . Corrupted Parts 5 | . . . . . . . . . . . 1 3 1 . System Corruption 27 | . . . . . . . . . . . 7 17 3 . Parts Lost 78 | . 1 2 . 5 7 10 1 10 . 12 5 14 8 3 Power 9 | . 1 1 . . 1 1 1 1 . 1 . 2 . . Propulsion 36 | . . . . 1 3 4 . 6 . 7 2 8 4 1 Utility 10 | . . . . 1 1 2 . . . . 1 2 2 1 Weapon 23 | . . 1 . 3 2 3 . 3 . 4 2 2 2 1 Highest Loss Streak 5 | . 1 1 . 2 3 5 1 5 . 4 3 4 4 3 Average Slot Usage (%) 81 | . 91 96 83 76 92 97 96 84 91 60 80 74 76 80 Engine 4 | . 13 10 9 9 9 5 1 4 . . . 3 . . Core 1 | . . . . . . 3 5 1 7 2 2 . 1 5 Treads 19 | . 28 41 13 7 39 43 38 20 . . 9 17 22 23 Leg 6 | . . . . . . . . 8 38 11 15 8 4 . Wheel 2 | . . . 16 16 . . . . . . 5 . . . Storage 7 | . 14 11 9 9 9 9 7 7 7 7 6 6 5 5 Hackware 14 | . . 10 9 9 15 10 11 14 15 15 19 19 26 29 Protection 2 | . . . 9 8 1 6 7 2 . . . 2 . . Energy Gun 3 | . . 3 . . 9 4 7 7 7 2 . . . . Energy Cannon 1 | . . 4 6 10 1 . . . . . . . . . Ballistic Gun 5 | . 28 11 6 3 . 9 . . . 11 9 . . . Launcher 1 | . . . . 2 . . . 5 7 . . 1 2 . Special Weapon 3 | . . . . . . 2 7 6 6 6 6 5 . . Impact Weapon 1 | . . 1 5 . . . . . . . . 4 2 . Naked Turns . | . . . . . . . . . . . . . . . Heaviest Build 159 | 11 13 95 98 99 98 97 113 158 158 158 159 113 103 89 Greatest Support 123 | 40 40 83 103 100 100 102 100 100 60 60 86 110 123 106 Greatest Overweight (x) 49 | . . 1 3 4 2 2 1 49 2 49 12 28 3 . Average Overweight (x) 1 | . . . . . . . . 1 2 9 4 1 . . Largest Inventory Capacity 30 | 8 8 25 25 25 25 25 25 30 30 30 30 25 25 25 Average Capacity 25 | 6 8 19 25 25 25 25 25 28 30 30 28 25 25 25 Most Carried 30 | 1 3 18 23 25 25 25 25 30 30 30 25 25 24 25 Average Carried 21 | . 2 13 20 21 22 21 23 25 29 27 20 19 21 23 Final Capacity 30 | 8 8 25 25 25 25 25 25 30 30 30 25 25 25 25 Final Carried 30 | 1 3 18 21 24 19 25 24 30 29 25 18 25 22 22 Class Distribution -------------------- 41% | Bothacker-Mutant 24% | Botlord-Mutant 20% | Mutant 13% | Scavenger-Mutant Dominant Class ---------------- Mutant | -10/Materials Mutant | -9/Materials Mutant | -8/Materials Mutant | -8/Garrison Bothacker-Mutant | -8/Materials Scavenger-Mutant | -8/Garrison Bothacker-Mutant | -7/Factory Bothacker-Mutant | -7/Garrison Bothacker-Mutant | -7/Factory Bothacker-Mutant | -7/Garrison Botlord-Mutant | -6/Factory Botlord-Mutant | -6/Garrison Scavenger-Mutant | -5/Factory Botlord-Mutant | -5/Garrison Resources | -11 -10 -9 -8 -8 -8 -8 -7 -7 -7 -7 -6 -6 -5 -5 ----------- Run | Scr Mat Mat Mat Gar Mat Gar Fac Gar Fac Gar Fac Gar Fac Gar Matter Collected 4323 | 223 140 589 54 484 86 509 82 306 36 548 465 543 207 51 Remotely . | . . . . . . . . . . . . . . . Salvage Created 6128 | . 207 1657 158 772 401 869 15 414 10 504 259 404 353 105 Parts 342 | . 12 94 9 72 22 52 2 19 1 14 13 15 11 6 Haulers Intercepted 6 | . . 5 1 . . . . . . . . . . . Recyclers Shooed 2 | . 1 1 . . . . . . . . . . . . Parts Field Recycled . | . . . . . . . . . . . . . . . Retrieved Matter . | . . . . . . . . . . . . . . . Parts Self-Destructed . | . . . . . . . . . . . . . . . Prevented . | . . . . . . . . . . . . . . . Kills | -11 -10 -9 -8 -8 -8 -8 -7 -7 -7 -7 -6 -6 -5 -5 ------- Run | Scr Mat Mat Mat Gar Mat Gar Fac Gar Fac Gar Fac Gar Fac Gar Combat Hostiles Destroyed 139 | . 4 29 2 36 8 17 . 12 1 8 6 7 6 3 Melee 15 | . . . . . 1 . . . . . 2 4 6 2 Guns 71 | . 4 23 1 . 5 17 . 9 . 7 4 1 . . Cannons 33 | . . 6 1 24 2 . . . . . . . . . AOE 18 | . . . . 10 . . . 3 1 1 . 2 . 1 Classes Destroyed 16 | . 2 7 1 . 2 1 . . . . 1 1 . 1 Worker 2 | . . 1 . . . . 1 . . . . . . . Builder 1 | . . . . . 1 . . . . . . . . . Hauler 6 | . . 5 1 . . . . . . . . . . . Recycler 1 | . . 1 . . . . . . . . . . . . Operator 3 | . 1 2 . . . . . . . . . . . . Watcher 6 | . . 4 . . 1 . . . . . . 1 . . Swarmer 41 | . . 3 . 24 1 . . 4 1 3 3 . . 2 Saboteur 1 | . . . . . . . . . . . . 1 . . Grunt 61 | . 4 19 . 6 4 10 . 7 . 4 1 3 3 . Brawler 5 | . . 1 . . . . . . . 1 . 2 1 . Duelist 1 | . . . . . . 1 . . . . . . . . Protector 1 | . . . . . 1 . . . . . . . . . Sentry 21 | . . 6 1 6 1 6 . 1 . . . . . . Specialist 1 | . . . . . . . . . . . . . . 1 Hunter 3 | . . . 1 . 1 . . . . . 1 . . . Programmer 4 | . . . . . . . . . . . 1 1 2 . Best Kill Streak 9 | . 2 8 1 9 2 4 1 4 1 3 3 2 3 3 Combat Bots Only 9 | . 2 5 1 9 1 4 . 4 1 3 3 2 3 3 Max Kills in Single Turn 3 | . 1 1 1 2 1 1 1 3 1 1 1 2 1 1 Gunslinging . | . . . . . . . . . . . . . . . Exploded 3 | . . . . 2 . . . 3 1 1 . 2 . 1 Melee 1 | . . . . . 1 . . . . . 1 1 1 1 Uniques/NPCs Destroyed . | . . . . . . . . . . . . . . . Combat | -11 -10 -9 -8 -8 -8 -8 -7 -7 -7 -7 -6 -6 -5 -5 -------- Run | Scr Mat Mat Mat Gar Mat Gar Fac Gar Fac Gar Fac Gar Fac Gar Damage Taken 12497 | . 248 1003 215 1427 949 1601 225 1251 58 1505 1035 1356 1221 403 Core 1843 | . 34 138 . 239 77 174 18 212 . 411 107 165 168 100 Absorbed by Shields 315 | . . . . . . . . . . . . 170 . 145 Core Remaining (%) 56 | 100 86 65 . . . 10 . . . 8 . 68 . . Volleys Fired 674 | . 24 109 16 161 52 80 7 58 2 80 48 28 7 2 Largest 2 | . 2 2 2 2 2 2 1 2 1 2 2 1 1 1 Hottest 160 | . 40 124 91 136 124 81 56 160 36 97 46 43 43 60 Shots Fired 999 | . 48 212 32 189 66 150 7 70 2 127 57 30 7 2 Gun 668 | . 48 187 16 16 52 148 5 59 . 101 33 1 . 2 Cannon 206 | . . 25 16 151 14 . . . . . . . . . Launcher 37 | . . . . 22 . . . 6 2 2 . 4 1 . Special 88 | . . . . . . 2 2 5 . 24 24 25 6 . Kinetic 438 | . 48 141 16 10 . 106 . . . 83 33 1 . . Thermal 428 | . . 65 16 157 66 42 5 59 . 18 . . . . Explosive 32 | . . . . 22 . . . 6 2 2 . . . . Electromagnetic 13 | . . 6 . . . . . . . . . 4 1 2 Robot Hit Streak 25 | . 5 14 14 7 6 13 8 17 . 25 25 16 8 1 Robot Miss Streak 7 | . 2 4 2 3 2 4 2 3 1 7 3 2 . 1 Penetration Max . | . . . . . . . . . . . . . . . Secondary Targets 12 | . 1 3 . . . 5 . 1 . 2 . . . . Max Gunslinging Chain 1 | . 1 1 . . . 1 . 1 . 1 . . . . Shots Hit Robots 677 | . 32 146 23 61 61 91 5 46 . 87 46 42 29 8 Core Hits 295 | . 13 60 5 53 15 39 1 31 2 37 14 13 8 4 Critical Kills 4 | . . 1 1 2 . . . . . . . . . . Critical Parts Destroyed 2 | . . . . . . 1 . . . . 1 . . . Critical Strikes 16 | . . 3 1 3 . 3 . 2 . 2 1 . . 1 Burn 9 | . . 2 . 1 . 2 . 2 . 2 . . . . Meltdown 2 | . . . . 2 . . . . . . . . . . Destroy 4 | . . 1 1 . . 1 . . . . 1 . . . Sever 1 | . . . . . . . . . . . . . . 1 Melee Attacks 130 | . . 6 1 . 22 7 . 3 . . 6 33 38 14 Impact 26 | . . 6 1 . . . . . . . . 16 3 . Slashing 52 | . . . . . . 7 . 3 . . . . 32 10 Piercing 23 | . . . . . . . . . . . 6 17 . . Sneak Attacks 12 | . . . . . 5 . . . . . 1 1 4 1 Combat Hostiles 5 | . . . . . 2 . . . . . . . 3 . Follow-up Attacks . | . . . . . . . . . . . . . . . Damage Inflicted 12354 | . 361 2144 394 2044 816 1467 64 978 100 1048 558 688 1402 290 Guns 6277 | . 361 1759 148 47 544 1467 64 700 . 835 318 15 . 19 Cannons 1992 | . . 372 246 1106 268 . . . . . . . . . Explosions 2050 | . . . . 891 . . . 213 100 213 . 120 446 67 Melee 2015 | . . . . . . . . 65 . . 240 550 956 204 Ramming 20 | . . 13 . . 4 . . . . . . 3 . . Kinetic 3629 | . 361 1140 148 30 . 956 . . . 661 318 15 . . Thermal 5074 | . . 938 246 1123 812 511 64 700 . 174 . 57 382 67 Explosive 1417 | . . . . 891 . . . 213 100 213 . . . . Electromagnetic 199 | . . 53 . . . . . . . . . 63 64 19 Impact 209 | . . . . . . . . . . . . 160 49 . Slashing 1176 | . . . . . . . . 65 . . . . 907 204 Piercing 630 | . . . . . . . . . . . 240 390 . . Highest Corruption 28 | . . 1 . . 3 3 1 1 1 1 10 28 14 14 Average Corruption 5 | . . 1 . . 2 3 1 1 1 1 6 20 9 14 Corruption Purged 5 | . . . . . . . . . . . . 5 . . Effects 213 | . . 4 . . 9 15 . 10 1 8 23 104 26 13 Message Errors 62 | . . 2 . . 2 5 . 5 1 5 6 26 5 5 Matter Fused 46 | . . . . . 4 4 . . . . 3 24 8 3 Heat Flow Errors 26 | . . . . . . 2 . . . . 2 15 5 2 Energy Discharges 30 | . . 1 . . 2 2 . 2 . 2 3 12 6 . Parts Rejected 1 | . . . . . . . . . . . 1 . . . Data Loss (minor) 28 | . . . . . 1 1 . 3 . 1 4 16 1 1 Data Loss (major) 7 | . . . . . . . . . . . 2 3 1 1 Misfires 3 | . . . . . . . . . . . 1 2 . . Alerts 5 | . . . . . . . . . . . . 4 . 1 Misdirections 2 | . . . . . . . . . . . . 2 . . Weapon Failures 3 | . . 1 . . . 1 . . . . 1 . . . Overload Shots . | . . . . . . . . . . . . . . . Overflow Damage 272 | . . 10 . 35 . . . . . 14 78 9 126 . Projectiles 15 | . . 10 . 5 . . . . . . . . . . Explosions 126 | . . . . 30 . . . . . 14 . 9 73 . Melee 131 | . . . . . . . . . . . 78 . 53 . Knockbacks . | . . . . . . . . . . . . . . . Impact . | . . . . . . . . . . . . . . . Kinetic . | . . . . . . . . . . . . . . . Secondary . | . . . . . . . . . . . . . . . Self-Inflicted Damage 605 | . . . . 175 . . . 38 . 55 . 154 171 12 Shots 18 | . . . . 6 . . . 2 . 1 . 5 3 1 Rammed 4 | . . 2 . . 1 . . . . . . 1 . . Targets Rammed 5 | . . 2 . . 2 . . . . . . 1 . . Kicked . | . . . . . . . . . . . . . . . Crushed 1 | . . . . . 1 . . . . . . . . . Highest Temperature 397 | . 28 321 108 378 397 206 36 383 . 252 256 256 237 269 Average Temperature 80 | . 11 76 42 72 207 65 19 94 . 72 68 85 97 106 Received Heat Transfer 3261 | . 156 450 18 225 171 684 18 582 24 204 177 425 111 16 Effects 10 | . . . . 2 2 1 . 4 . . . 1 . . Energy Bleed 2 | . . . . . 1 . . . . . . 1 . . Interference 5 | . . . . 1 . 1 . 3 . . . . . . Short Circuit 2 | . . . . 1 1 . . . . . . . . . Damage (minor) 1 | . . . . . . . . 1 . . . . . . Siege Activations . | . . . . . . . . . . . . . . . Robots Corrupted . | . . . . . . . . . . . . . . . Combat Hostiles . | . . . . . . . . . . . . . . . Parts Fried . | . . . . . . . . . . . . . . . Impact Corruptions . | . . . . . . . . . . . . . . . Robots Melted 2 | . . . . 2 . . . . . . . . . . Combat Hostiles 2 | . . . . 2 . . . . . . . . . . Parts Melted 15 | . . 2 1 6 . 4 . 2 . . . . . . Heat Transferred 10320 | . . 2035 444 2070 1662 1350 148 1780 . 481 . 50 200 100 Parts Sabotaged 8 | . . . . . . . . . . . . 8 . . Parts Stolen . | . . . . . . . . . . . . . . . Parts Stripped . | . . . . . . . . . . . . . . . Power Chain Reactions 2 | . . . . . . . . . . . . 1 . 1 Missiles Intercepted . | . . . . . . . . . . . . . . . Alert | -11 -10 -9 -8 -8 -8 -8 -7 -7 -7 -7 -6 -6 -5 -5 ------- Run | Scr Mat Mat Mat Gar Mat Gar Fac Gar Fac Gar Fac Gar Fac Gar Peak Influence 1462 | . 125 502 306 1462 849 803 463 1048 648 439 165 234 235 221 Initial 712 | . . 52 191 198 712 392 421 210 550 313 165 39 67 72 Average 414 | . 90 251 231 884 741 612 412 660 514 333 72 139 100 131 Maximum Alert Level 4 | . . 2 1 4 3 3 2 3 2 2 . 1 1 1 Low Security (%) 31 | 100 100 45 37 2 . . . . . . 100 74 71 99 Level 1 23 | . . 21 62 15 . . 14 16 . 81 . 25 28 . Level 2 25 | . . 32 . 16 23 63 85 45 100 18 . . . . Level 3 15 | . . . . 25 76 35 . 38 . . . . . . Level 4 4 | . . . . 40 . . . . . . . . . . Level 5 . | . . . . . . . . . . . . . . . High Security . | . . . . . . . . . . . . . . . Max Security . | . . . . . . . . . . . . . . . Squads Dispatched 21 | . 1 4 2 . 5 . 1 . 2 . 4 . 2 . Investigation 2 | . . 2 . . . . . . . . . . . . Extermination 6 | . . . . . . . 1 . 2 . 1 . 2 . Reinforcement 8 | . 1 2 1 . 2 . . . . . 2 . . . Assault 2 | . . . . . 2 . . . . . . . . . Garrison 3 | . . . 1 . 1 . . . . . 1 . . . Intercept . | . . . . . . . . . . . . . . . Construction Impeded 1 | . . . . . . . . . . . 1 . . . Haulers Reinforced . | . . . . . . . . . . . . . . . Active Scanning Responses . | . . . . . . . . . . . . . . . Cargo Convoy Interrupts . | . . . . . . . . . . . . . . . Alert ID Control Effect 38 | . . . . . . . . . 2 9 6 19 2 . Stealth | -11 -10 -9 -8 -8 -8 -8 -7 -7 -7 -7 -6 -6 -5 -5 --------- Run | Scr Mat Mat Mat Gar Mat Gar Fac Gar Fac Gar Fac Gar Fac Gar Distress Signals 9 | . . 4 . . 4 . . 1 . . . . . . Communications Jammed . | . . . . . . . . . . . . . . . Distress Signals . | . . . . . . . . . . . . . . . Times Spotted 316 | . 10 40 7 40 40 22 5 25 1 32 25 38 20 11 Peak Tracking Total 9 | . 3 6 5 9 6 5 2 6 2 7 4 4 5 6 Tactical Retreats 27 | . . 1 . 7 2 5 . 2 . 2 . 3 5 . Traps | -11 -10 -9 -8 -8 -8 -8 -7 -7 -7 -7 -6 -6 -5 -5 ------- Run | Scr Mat Mat Mat Gar Mat Gar Fac Gar Fac Gar Fac Gar Fac Gar Traps Triggered 27 | . . 5 . 4 2 1 . 4 1 1 . 9 . . Indirectly 2 | . . . . . . . . . . . . 2 . . Trap Hack Attempts . | . . . . . . . . . . . . . . . Triggered . | . . . . . . . . . . . . . . . Disarmed . | . . . . . . . . . . . . . . . Reprogrammed . | . . . . . . . . . . . . . . . Reused . | . . . . . . . . . . . . . . . Traps Extracted . | . . . . . . . . . . . . . . . Installed . | . . . . . . . . . . . . . . . Triggered . | . . . . . . . . . . . . . . . Machines | -11 -10 -9 -8 -8 -8 -8 -7 -7 -7 -7 -6 -6 -5 -5 ---------- Run | Scr Mat Mat Mat Gar Mat Gar Fac Gar Fac Gar Fac Gar Fac Gar Machines Disabled 30 | . . . . 5 1 1 . 7 3 1 1 4 6 1 Max in Single Turn 5 | . . . . 1 . 1 . 2 3 1 . 1 5 1 Garrison Relay 16 | . . . . 5 . 1 . 3 . 1 . 5 . 1 Phase Generator 1 | . . . . . . . . 1 . . . . . . Machines Sabotaged . | . . . . . . . . . . . . . . . Garrisons Compromised . | . . . . . . . . . . . . . . . Overloaded Fab Kills . | . . . . . . . . . . . . . . . Fab Network Shutdowns . | . . . . . . . . . . . . . . . Hacking | -11 -10 -9 -8 -8 -8 -8 -7 -7 -7 -7 -6 -6 -5 -5 --------- Run | Scr Mat Mat Mat Gar Mat Gar Fac Gar Fac Gar Fac Gar Fac Gar Machines Accessed 23 | . . 9 3 . 3 . 2 . 2 . 2 . 2 . Terminals 11 | . . 7 2 . . . . . 1 . . . 1 . Fabricators 2 | . . . . . . . 1 . . . 1 . . . Repair Stations . | . . . . . . . . . . . . . . . Recycling Units 2 | . . 1 . . 1 . . . . . . . . . Scanalyzers 2 | . . 1 . . 1 . . . . . . . . . Garrison Access 6 | . . . 1 . 1 . 1 . 1 . 1 . 1 . Total Hacks 54 | . . 25 12 . 5 . 3 . 2 . 4 . 3 . Successful 44 | . . 21 8 . 5 . 3 . 1 . 3 . 3 . Failed 10 | . . 4 4 . . . . . 1 . 1 . . . Catastrophic 1 | . . . . . . . . . 1 . . . . . Database Lockouts . | . . . . . . . . . . . . . . . Manual 33 | . . 19 10 . 1 . . . 1 . . . 2 . Terminals 35 | . . 21 11 . . . . . 1 . . . 2 . Fabricators 5 | . . . . . . . 2 . . . 3 . . . Repair Stations . | . . . . . . . . . . . . . . . Recycling Units 3 | . . 2 . . 1 . . . . . . . . . Scanalyzers 5 | . . 2 . . 3 . . . . . . . . . Garrison Access 6 | . . . 1 . 1 . 1 . 1 . 1 . 1 . Terminal Hacks 12 | . . 7 4 . . . . . . . . . 1 . Part Schematic 1 | . . 1 . . . . . . . . . . . . Branch Access Points 1 | . . 1 . . . . . . . . . . . . Terminal Index 3 | . . 1 1 . . . . . . . . . 1 . Fabricator Index 2 | . . 1 1 . . . . . . . . . . . Unreport Threat 1 | . . 1 . . . . . . . . . . . . Locate Traps 2 | . . 1 1 . . . . . . . . . . . Recall Investigation 1 | . . 1 . . . . . . . . . . . . Zone Layout 1 | . . . 1 . . . . . . . . . . . Fabricator Hacks 4 | . . . . . . . 2 . . . 2 . . . Load Schematic 2 | . . . . . . . 1 . . . 1 . . . Build 2 | . . . . . . . 1 . . . 1 . . . Repair Station Hacks . | . . . . . . . . . . . . . . . Recycling Unit Hacks 1 | . . 1 . . . . . . . . . . . . Retrieve Components 1 | . . 1 . . . . . . . . . . . . Scanalyzer 5 | . . 2 . . 3 . . . . . . . . . Insert Component 3 | . . 1 . . 2 . . . . . . . . . Analyze 2 | . . 1 . . 1 . . . . . . . . . Garrison Access Hacks 6 | . . . 1 . 1 . 1 . 1 . 1 . 1 . Unlock Access 6 | . . . 1 . 1 . 1 . 1 . 1 . 1 . Unauthorized Hacks 16 | . . 11 3 . 1 . . . . . . . 1 . Terminals 14 | . . 10 3 . . . . . . . . . 1 . Track 2 | . . 2 . . . . . . . . . . . . Assimilate 1 | . . 1 . . . . . . . . . . . . Botnet 8 | . . 5 2 . . . . . . . . . 1 . Operators 3 | . . 2 1 . . . . . . . . . . . Fabricators . | . . . . . . . . . . . . . . . Repair Stations . | . . . . . . . . . . . . . . . Recycling Units 2 | . . 1 . . 1 . . . . . . . . . Recyclers 2 | . . 1 . . 1 . . . . . . . . . Scanalyzers . | . . . . . . . . . . . . . . . Garrison Access . | . . . . . . . . . . . . . . . Data Cores Recovered . | . . . . . . . . . . . . . . . Used . | . . . . . . . . . . . . . . . Hacking Detections 14 | . . 4 2 . 2 . 1 . 2 . 1 . 2 . Full Trace Events . | . . . . . . . . . . . . . . . Feedback Events . | . . . . . . . . . . . . . . . Feedback Blocked . | . . . . . . . . . . . . . . . Robot Schematics Acquired . | . . . . . . . . . . . . . . . Robots Built . | . . . . . . . . . . . . . . . Matter . | . . . . . . . . . . . . . . . Time . | . . . . . . . . . . . . . . . Total Robot Build Rating . | . . . . . . . . . . . . . . . Part Schematics Acquired 3 | . . 2 . . 1 . . . . . . . . . Parts Built 2 | . . . . . . . 1 . . . 1 . . . Matter 204 | . . . . . . . 102 . . . 102 . . . Time 102 | . . . . . . . 51 . . . 51 . . . Total Part Build Rating 2 | . . . . . . . 1 . . . 1 . . . Parts Repaired . | . . . . . . . . . . . . . . . Time . | . . . . . . . . . . . . . . . Parts Recycled . | . . . . . . . . . . . . . . . Recycled Matter . | . . . . . . . . . . . . . . . Retrieved Matter . | . . . . . . . . . . . . . . . Retrieved Components 9 | . . 9 . . . . . . . . . . . . Parts Scanalyzed 2 | . . 1 . . 1 . . . . . . . . . Part Schematics Acquired 2 | . . 1 . . 1 . . . . . . . . . Parts Damaged . | . . . . . . . . . . . . . . . Bothacking | -11 -10 -9 -8 -8 -8 -8 -7 -7 -7 -7 -6 -6 -5 -5 ------------ Run | Scr Mat Mat Mat Gar Mat Gar Fac Gar Fac Gar Fac Gar Fac Gar Used RIF Installer 6 | . . . . 1 . 1 . 1 . 1 . 1 . 1 Coupler Efficiency 1 | . . . . . . 1 . . . . . . . . Zone Cloak 1 | . . . . . . . . . . . . . . 1 Patrol Navigation 1 | . . . . . . . . . . . . 1 . . Alert ID Control 1 | . . . . . . . . 1 . . . . . . Structural Interface 1 | . . . . . . . . . . 1 . . . . Robots Hacked 66 | . . . . . 12 1 2 3 . 14 13 13 6 2 Non-combat 5 | . . . . . 2 . . . . . 2 . 1 . Combat 61 | . . . . . 10 1 2 3 . 14 11 13 5 2 Robot Hacks Applied 79 | . . . . . 15 1 2 3 . 15 16 17 8 2 parse_system 6 | . . . . . 2 . . . . 2 2 . . . ignore_repairs 1 | . . . . . 1 . . . . . . . . . find_fabricator 1 | . . . . . . . . . . . . . 1 . drop_inventory 1 | . . . . . . . . . . . . . 1 . map_route 1 | . . . . . . . . . . . 1 . . . relay_feed 1 | . . . . . . . . . . . 1 . . . find_garrison 3 | . . . . . 1 . . . . . 1 . 1 . mark_system 1 | . . . . . . . . . . . . 1 . . spike_heat 1 | . . . . . . . . . . . . 1 . . overload_power 2 | . . . . . . . . . . . 1 . 1 . disable_weapons 2 | . . . . . . . . 1 . 1 . . . . overwrite_iff 36 | . . . . . 5 1 . 1 . 8 6 12 3 . streamctrl_high 5 | . . . . . 3 . . . . 1 1 . . . formatsys_high 18 | . . . . . 3 . 2 1 . 3 3 3 1 2 Relay Couplers Released 60 | . . . . 18 . 5 . 11 . 4 . 17 . 5 Machine Destruction 60 | . . . . 18 . 5 . 11 . 4 . 17 . 5 Attached 30 | . . . . . 6 1 1 1 . 4 6 6 3 2 Robots Rewired 6 | . . . . . . . . . . . . 6 . . Allies Hacked . | . . . . . . . . . . . . . . . Hacks Repelled . | . . . . . . . . . . . . . . . Allies | -11 -10 -9 -8 -8 -8 -8 -7 -7 -7 -7 -6 -6 -5 -5 -------- Run | Scr Mat Mat Mat Gar Mat Gar Fac Gar Fac Gar Fac Gar Fac Gar Total Allies 61 | . . 1 . . 10 1 2 2 . 12 10 17 4 2 Largest Group 10 | . . 1 1 1 2 1 2 3 1 2 3 10 1 2 Highest-Rated Group 302 | . . 10 10 10 30 16 53 85 21 45 93 302 129 98 Highest-Rated Ally 129 | . . 10 10 10 29 16 32 32 21 32 47 32 129 49 Total Orders 25 | . . . 1 3 . . . 11 . 1 . 5 . 4 STAY 15 | . . . 1 2 . . . 6 . 1 . 2 . 3 FOLLOW 10 | . . . . 1 . . . 5 . . . 3 . 1 Ally Attacks 351 | . . . . . 77 4 5 29 3 44 50 118 21 . Total Damage 7334 | . . . . . 1092 45 162 930 82 787 944 2666 626 . Kills 62 | . . . . . 8 . 2 12 2 9 6 20 3 . Allies Corrupted 1 | . . . . . . . . . . . 1 . . . Allies Melted . | . . . . . . . . . . . . . . . Intel | -11 -10 -9 -8 -8 -8 -8 -7 -7 -7 -7 -6 -6 -5 -5 ------- Run | Scr Mat Mat Mat Gar Mat Gar Fac Gar Fac Gar Fac Gar Fac Gar Robot Analysis Total . | . . . . . . . . . . . . . . . Derelict Logs Recovered . | . . . . . . . . . . . . . . . Drone Launches . | . . . . . . . . . . . . . . . Drone Recoveries . | . . . . . . . . . . . . . . . Exploration | -11 -10 -9 -8 -8 -8 -8 -7 -7 -7 -7 -6 -6 -5 -5 ------------- Run | Scr Mat Mat Mat Gar Mat Gar Fac Gar Fac Gar Fac Gar Fac Gar Turns Passed 18278 | 62 355 2225 358 1988 1216 816 468 2727 785 2305 1262 2488 910 313 Spaces Moved 6441 | 35 175 876 218 1240 443 292 156 828 276 179 462 753 357 151 Core 17 | 3 . . . . . . . 3 . 9 . 2 . . Treads 3739 | 32 175 876 18 80 443 292 156 607 . 17 . 538 354 151 Legs 1032 | . . . . . . . . 218 276 124 198 213 3 . Wheels 1653 | . . . 200 1160 . . . . . 29 264 . . . Hover . | . . . . . . . . . . . . . . . Flight . | . . . . . . . . . . . . . . . Fastest Speed 50 | 50 160 160 115 115 160 157 160 160 280 180 180 160 160 160 Average Speed 216 | 150 160 195 118 120 210 163 247 293 280 709 215 261 186 160 Slowest Speed 2500 | 160 160 260 160 560 360 352 260 2500 280 2500 520 1450 360 160 Overloaded Moves . | . . . . . . . . . . . . . . . Propulsion Burnouts . | . . . . . . . . . . . . . . . Robots Hopped . | . . . . . . . . . . . . . . . Cave-ins Triggered . | . . . . . . . . . . . . . . . Exploration Rate (%) 40 | 2 40 80 19 84 54 41 7 76 9 40 20 97 10 23 Regions Visited 14 Branch Regions . Pre-discovered Areas . | . . . . . . . . . . . . . . . Known Exits Taken 6 | . . . 1 . 1 . 1 . 1 . 1 . 1 . Unknown Exits Taken 3 | 1 1 1 . . . . . . . . . . . . Scrap Searched . | . . . . . . . . . . . . . . . Spaces Dug 35 | . . 4 1 22 . 1 . . . 6 . . 1 . Terrain Destroyed 311 | . . 4 1 79 . 1 . 147 19 22 . . 29 9 Melee 7 | . . 4 1 . . 1 . . . . . . 1 . Projectile 2 | . . . . . . . . . . 2 . . . . AOE 302 | . . . . 79 . . . 147 19 20 . . 28 9 Terrain Rammed . | . . . . . . . . . . . . . . . Walls Destroyed . | . . . . . . . . . . . . . . . Machines Disabled . | . . . . . . . . . . . . . . . Actions | -11 -10 -9 -8 -8 -8 -8 -7 -7 -7 -7 -6 -6 -5 -5 --------- Run | Scr Mat Mat Mat Gar Mat Gar Fac Gar Fac Gar Fac Gar Fac Gar Total 9653 | 41 206 1174 286 1539 646 481 234 1045 288 1106 677 1190 538 202 Wait 1834 | . 4 110 26 78 109 50 56 100 . 825 128 207 115 26 Move 6428 | 34 174 875 217 1239 442 291 155 827 275 178 462 752 356 151 Hop . | . . . . . . . . . . . . . . . Pick Up 127 | 1 2 29 8 16 3 20 3 13 2 2 5 17 3 3 Fast Attach 89 | 6 2 12 2 5 2 7 1 10 1 8 10 14 9 . Attach 67 | . . 4 2 7 5 10 4 6 . 2 7 11 6 3 Detach 9 | . . . 2 . 1 . 2 1 . . . 1 . 2 Swap 42 | . . 10 3 7 3 4 2 3 . 5 3 1 1 . Drop 74 | . . 17 9 10 2 12 3 6 3 1 7 1 3 . Fire 674 | . 24 109 16 161 52 80 7 58 2 80 48 28 7 2 Melee 130 | . . 6 1 . 22 7 . 3 . . 6 33 38 14 Ram 1 | . . . . . . . . . . . . 1 . . Kick . | . . . . . . . . . . . . . . . Crush 5 | . . 2 . . 2 . . . . . . 1 . . Escape Stasis 61 | . . . . 16 . . . 17 5 5 . 18 . . Rewire 112 | . . . . . 3 . 1 1 . . 1 105 . 1 Trap . | . . . . . . . . . . . . . . . Miscellaneous . | . . . . . . . . . . . . . . . Route ------- -11/Scrapyard -10/Materials (discovered 3 exits: *Mat x2 / [*Min]) -9/Materials (discovered 4 exits: *Mat x3 / *Min) -8/Materials -8/Garrison (discovered 3 exits: *Mat x3) -8/Materials (discovered 2 exits: *Fac / Gar) -8/Garrison -7/Factory -7/Garrison (discovered 2 exits: *Fac x2) -7/Factory -7/Garrison -6/Factory (discovered 2 exits: [Low] / Gar) -6/Garrison (discovered 3 exits: *Fac x3) -5/Factory -5/Garrison History --------- Turn | Location | Event 39 | -11/Scrapyard | Discovered new exit (range 15) 63 | -11/Scrapyard | Entered Materials 162 | -10/Materials | Discovered new exit (range 11) 250 | -10/Materials | Discovered new exit (range 8) 312 | -10/Materials | Build established: Mutant 394 | -10/Materials | Discovered new exit (range 4) 418 | -10/Materials | Entered another Materials area 418 | -9/Materials | Evolved 2 slots: Propulsion x2 679 | -9/Materials | Identified exit to Mines 1004 | -9/Materials | Discovered new exit (range 3) 1685 | -9/Materials | Discovered new exit (range 10) 1897 | -9/Materials | Build established: Scavenger-Mutant 2150 | -9/Materials | Discovered new exit (range 4) 2643 | -9/Materials | Entered another Materials area 2643 | -8/Materials | Accompanied by 1 ally 2643 | -8/Materials | Evolved 2 slots: Propulsion x1, Utility x1 2662 | -8/Materials | Found Powered Armor 2665 | -8/Materials | Found Powered Armor 2668 | -8/Materials | Found Powered Armor 2670 | -8/Materials | Found Powered Armor 2923 | -8/Materials | Garrison activated, responded to threat 2987 | -8/Materials | Build established: Mutant 2993 | -8/Materials | Identified exit to Garrison 3001 | -8/Materials | Entered Garrison 3001 | -8/Garrison | Accompanied by 1 ally 3342 | -8/Garrison | Triggered checkpoint 3361 | -8/Garrison | Garrison Relay disabled 3408 | -8/Garrison | Triggered checkpoint 3413 | -8/Garrison | Triggered checkpoint 3602 | -8/Garrison | Discovered new exit (range 14) 3714 | -8/Garrison | Discovered new exit (range 14) 3771 | -8/Garrison | Triggered checkpoint 3850 | -8/Garrison | Discovered new exit (range 14) 3870 | -8/Garrison | Installed Relay Interface Framework 4136 | -8/Garrison | Destroyed 9 combat bots 4148 | -8/Garrison | Triggered checkpoint 4167 | -8/Garrison | Garrison Relay disabled 4227 | -8/Garrison | Garrison Relay disabled 4505 | -8/Garrison | Spotted B-75 Beast 4505 | -8/Garrison | Spotted B-75 Beast 4554 | -8/Garrison | Garrison Relay disabled 4728 | -8/Garrison | Garrison Relay disabled 4732 | -8/Garrison | Triggered checkpoint 4989 | -8/Garrison | Entered Materials 4989 | -8/Materials | Accompanied by 1 ally 5353 | -8/Materials | Build established: Bothacker-Mutant 5742 | -8/Materials | Core integrity fell below 50% 5789 | -8/Materials | First assault squad dispatched 6127 | -8/Materials | Garrison activated, responded to threat 6138 | -8/Materials | Discovered new exit (range 16) 6154 | -8/Materials | Lost 3 parts (1p1n1u) 6174 | -8/Materials | Identified exit to Garrison 6205 | -8/Materials | Entered Garrison 6207 | -8/Garrison | Lost 3 parts (2n1w) 6244 | -8/Garrison | Expanded RIF knowledge: Coupler Efficiency 6333 | -8/Garrison | Lost 5 parts (3n1u1w) 6466 | -8/Garrison | Triggered checkpoint 6563 | -8/Garrison | Triggered checkpoint 6583 | -8/Garrison | Build established: Scavenger-Mutant 6660 | -8/Garrison | Core integrity fell below 20% 6860 | -8/Garrison | Triggered checkpoint 6915 | -8/Garrison | Garrison Relay disabled 7009 | -8/Garrison | Discovered new exit (range 8) 7021 | -8/Garrison | Entered Factory 7021 | -7/Factory | Evolved 2 slots: Utility x1, Weapon x1 7120 | -7/Factory | Build established: Bothacker-Mutant 7133 | -7/Factory | Fabricated Cargo Storage Unit (x1) 7431 | -7/Factory | Identified exit to Garrison 7464 | -7/Factory | Found Prototype Launcher 7465 | -7/Factory | Identified Rocket Array 7489 | -7/Factory | Entered Garrison 7489 | -7/Garrison | Accompanied by 2 allies 7556 | -7/Garrison | Phase Generator disabled 7830 | -7/Garrison | Triggered checkpoint 8023 | -7/Garrison | Garrison Relay disabled 8050 | -7/Garrison | Triggered checkpoint 8170 | -7/Garrison | Triggered checkpoint 8368 | -7/Garrison | Discovered new exit (range 15) 8486 | -7/Garrison | Triggered checkpoint 8541 | -7/Garrison | Garrison Relay disabled 8748 | -7/Garrison | Triggered checkpoint 9441 | -7/Garrison | Lost 5 parts (1p3n1w) 9656 | -7/Garrison | Garrison Relay disabled 9692 | -7/Garrison | Triggered checkpoint 9776 | -7/Garrison | Discovered new exit (range 3) 9795 | -7/Garrison | Expanded RIF knowledge: Alert ID Control 10216 | -7/Garrison | Entered Factory 10216 | -7/Factory | Accompanied by 1 ally 10998 | -7/Factory | Identified exit to Garrison 11001 | -7/Factory | Entered Garrison 11047 | -7/Garrison | Triggered checkpoint 11121 | -7/Garrison | Garrison Relay disabled 11494 | -7/Garrison | Triggered checkpoint 11550 | -7/Garrison | Lost 3 parts (3n) 11707 | -7/Garrison | Triggered checkpoint 11727 | -7/Garrison | Core integrity fell below 50% 11750 | -7/Garrison | Lost 4 parts (1p2n1w) 11778 | -7/Garrison | Triggered checkpoint 11814 | -7/Garrison | Core integrity fell below 20% 11835 | -7/Garrison | Lost 3 parts (1n2w) 12312 | -7/Garrison | Triggered checkpoint 12870 | -7/Garrison | Discovered new exit (range 15) 13289 | -7/Garrison | Expanded RIF knowledge: Structural Interface 13306 | -7/Garrison | Entered Factory 13306 | -6/Factory | Accompanied by 1 ally 13306 | -6/Factory | Evolved 2 slots: Utility x2 13590 | -6/Factory | Build established: Botlord-Mutant 13752 | -6/Factory | Discovered new exit (range 104) 13844 | -6/Factory | Lost 3 parts (1n1u1w) 13885 | -6/Factory | System corruption reached 10% 14096 | -6/Factory | Fabricated Huge Storage Unit (x1) 14566 | -6/Factory | Identified exit to Garrison 14568 | -6/Factory | Entered Garrison 14568 | -6/Garrison | Accompanied by 1 ally 14872 | -6/Garrison | Triggered checkpoint 14910 | -6/Garrison | Triggered checkpoint 14958 | -6/Garrison | Garrison Relay disabled 14974 | -6/Garrison | Lost 3 parts (1p1n1w) 15064 | -6/Garrison | Triggered checkpoint 15099 | -6/Garrison | Garrison Relay disabled 15475 | -6/Garrison | Discovered new exit (range 10) 15490 | -6/Garrison | Triggered checkpoint 15595 | -6/Garrison | Garrison Relay disabled 15699 | -6/Garrison | Expanded RIF knowledge: Patrol Navigation 15856 | -6/Garrison | Triggered checkpoint 15874 | -6/Garrison | Triggered checkpoint 15964 | -6/Garrison | Triggered checkpoint 16042 | -6/Garrison | Discovered new exit (range 14) 16196 | -6/Garrison | Triggered checkpoint 16235 | -6/Garrison | Garrison Relay disabled 16412 | -6/Garrison | Triggered checkpoint 16482 | -6/Garrison | Triggered checkpoint 16549 | -6/Garrison | Discovered new exit (range 5) 16646 | -6/Garrison | Lost 4 parts (1p3n) 16952 | -6/Garrison | Garrison Relay disabled 17056 | -6/Garrison | Entered Factory 17056 | -5/Factory | Evolved 2 slots: Propulsion x1, Utility x1 17231 | -5/Factory | Lost 3 parts (1n1u1w) 17445 | -5/Factory | Build established: Scavenger-Mutant 17616 | -5/Factory | System corruption reached 10% 17684 | -5/Factory | Lost 4 parts (2n1u1w) 17957 | -5/Factory | Identified exit to Garrison 17964 | -5/Factory | Build established: Botlord-Mutant 17966 | -5/Factory | Entered Garrison 17974 | -5/Garrison | Expanded RIF knowledge: Zone Cloak 18004 | -5/Garrison | Triggered checkpoint 18035 | -5/Garrison | Garrison Relay disabled 18248 | -5/Garrison | Triggered checkpoint 18248 | -5/Garrison | Spotted B-75 Beast 18279 | -5/Garrison | Self-destructed Last Messages --------------- 18144_ Reactivated Sentinel 6b. 18155_ PUSYZ, EY/GII,L15BME FVM0MDFDELVK<,T 18180_ System corrupted: Matter fused (-8). 18206_ RIF reveals location of phase wall. 18214_ RIF reveals location of hidden door. 18218_ System corrupted: Matter fused (-10). 18226_ Discarded Enh. Optical Array. 18235_ 40U9KNFLWD& ZJ8 V%RZZBQM2 18237_ RIF reveals location of phase wall. 18247_ X-67 Chaingunner Angular Momentum Engine severed. 18247_ Relay Coupler [Heavy] destroyed. 18249_ X-67 Chaingunner destroyed. 18250_ Acquired 51 matter. 18252_ FZ,VYB9NSMQGI :O3CG% 8T HG/P73EZU 18259_ Datajack destroyed. 18262_ S-27 Virus destroyed. 18269_ System corrupted: Component data lost. 18277_ Chain reaction triggered in Unknown Power Core. 18277_ S-27 Virus destroyed. 18279_ Imp. Medium Treads destroyed. Map ----- +----------------------------------------------------+ | ??????????????????????????????#####+++#### #?????? | | ??????????????????????????????# ^## #?????? | | ??????????????????????????????# ## #?????? | | ??????????????????????????????# ### #### ######? | | ??????????????????????????????# #?# + ##"""#? | | ??????????????????????????????# #?######## ##" "#? | | ??????????????????????????????# #????????# ##" "#? | | ??????????????????????????????# #????????# ##" "#? | | ??????????????????????????????# #????????# ### ##? | | ?????????????????????????###### #????????# ## #? | | ?????????????????????????#]]]## ##########+## #? | | ?????????????????????????# + + #? | | ?????????????????????????#[[[## ##### #? | | ?????????????????????????###### #???# ###+######? | | ??????????????????????????????# #???# ### #?????? | | ??????????????????????????????# #???# ## #?????? | | ??????????????????????????????# #???# ### #?????? | | ??????????????????????????????# ##### ### #?????? | | ??????????????????????????????# + #?????? | | ??????????????????????????????#+##### #####?????? | | ??????????????????????????????# #???# #?????????? | | ??????????????????????????????# #???# #?????????? | | ??????????????????????##??????# #???# #?????????? | | ????????????????????### #######+##### #######???? | | ????????????????????# ;;;# | | ????????????????????# ;%[@% | | ????????????????????##;x;# s######### ##########+ | | ?????????????????????## ## s#???????# #?????????? | | ??????????????????????#=## #???????# #?????????? | | ??????????????????????#%## #???????# #?????????? | | ??????????????????????#"##^ #???????# #?????????? | | ????????????????????? =*## #???????# #?????????? | | ????????????????????""[!## #???????# #?????????? | | ????????????????????? ???????# #?????????? | | ????????????????????? ??????? ??????????? | | ???????????????????? ??????? ??????????? | | ???????????????????? ## ???????###??????????? | | ???????????????????# ## ????????????????????? | | ??????????????????? ? "???????????????????? | | ??????????????????? ? "???????????????????? | | ?????????????????? ? ????????????????????? | | ?????????????????? ? ????????????????????? | | ????????????????? ## ?# ????????????????????? | | ???????????????????# ?? ????????????????????? | | ????????????????????? ?? ????????????????????? | | ?????????????????????????? ????????????????????? | | ?????????????????????????????????????????????????? | | ?????????????????????????????????????????????????? | | ?????????????????????????????????????????????????? | | ?????????????????????????????????????????????????? | +----------------------------------------------------+ Best States ------------- Heat Dissipation 40 Energy Generation 18 Energy Capacity 280 Matter Stores 300 Matter Capacity 300 Sight Range 22 Terrain Scan Density 10 Armor Coverage 600 Evasion (%) 40 Targeting Accuracy 5 Recoil Reduction 5 Offensive Hacking 10 Relay Coupler Types 110 Relay Coupler Value 5 Item Schematics ----------------- Huge Storage Unit | -9/Materials | Scanalyzed Cargo Storage Unit | -9/Materials | Hacked Powered Armor | -8/Materials | Scanalyzed Robot Schematics ------------------ None Fabricated ------------ Cargo Storage Unit | x1 | -7/Factory Huge Storage Unit | x1 | -6/Factory Alien Tech Used ----------------- None Achievements -------------- None Challenges ------------ None Game ------ Seed GatlingSeismicReactor Manual? 0 Play Time 01:33:55 Cumulative 116.0 hours Start 2021.11.16 @ 21:58:18 End 2021.11.17 @ 22:35:41 Sessions 7 Manual Loads 0 Difficulty Rogue Special Mode None Game No. 195 Rogue 178 Adventurer 4 Explorer 13 Win Type - Total 8 Types 6/0/0/2/0/0/0/0/0 Lore% 63 Gallery% 81 Achievement% 67 Wizard Run 0 Options --------- ASCII 0 Keyboard 1 Movement Numpad Keybinds 0 Fullscreen 1 Font 18/SmallcapsGlow Map View 76x50 Tactical HUD 1 Map Filters NONE Filters NONE Steam 1 RUN: 169ed021-634b-4c55-91bc-f809b038a7b0